[Event "*** SCC Grand Prix: Titled Tuesday Blitz"]
[Site "Chess.com"]
[Date "2020.07.14"]
[Round "4"]
[White "c_r_e_e_p_e_r"]
[Black "latixxa"]
[Result "1-0"]
[WhiteElo "2304"]
[BlackElo "2105"]
[TimeControl "180+1"]
[EndTime "10:40:41 PDT"]
[Termination "c_r_e_e_p_e_r won by checkmate"]

1. c4 {[%clk 0:03:00.9]} 1... e5 {[%clk 0:02:58.6]} 2. g3 {[%clk 0:03:01.2]}
2... h5 {[%clk 0:02:57.4]} 3. Nc3 {[%clk 0:03:00]} 3... Be7 {[%clk 0:02:54.1]}
4. Nf3 {[%clk 0:03:00]} 4... d6 {[%clk 0:02:52.9]} 5. d4 {[%clk 0:02:51.8]} 5...
exd4 {[%clk 0:02:50.4]} 6. Nxd4 {[%clk 0:02:50.3]} 6... h4 {[%clk 0:02:42.6]} 7.
gxh4 {[%clk 0:02:41.1]} 7... Bxh4 {[%clk 0:02:40.2]} 8. e4 {[%clk 0:02:27.5]}
8... Nc6 {[%clk 0:02:36.3]} 9. Be3 {[%clk 0:02:25.4]} 9... Be7 {[%clk
0:02:28.5]} 10. Qd2 {[%clk 0:02:17]} 10... Nf6 {[%clk 0:02:27.1]} 11. f3 {[%clk
0:01:44.6]} 11... Ne5 {[%clk 0:02:13.8]} 12. Be2 {[%clk 0:01:40.4]} 12... Be6
{[%clk 0:02:11.3]} 13. Nxe6 {[%clk 0:01:24.9]} 13... fxe6 {[%clk 0:02:10.1]} 14.
O-O-O {[%clk 0:01:21.5]} 14... Qd7 {[%clk 0:02:00]} 15. Kb1 {[%clk 0:01:19.7]}
15... a6 {[%clk 0:01:58.4]} 16. Rc1 {[%clk 0:01:17.5]} 16... O-O-O {[%clk
0:01:56.8]} 17. h4 {[%clk 0:01:04.5]} 17... Nc6 {[%clk 0:01:37.7]} 18. Qc2
{[%clk 0:00:37.5]} 18... Kb8 {[%clk 0:01:35.7]} 19. Rcd1 {[%clk 0:00:34.9]}
19... Qe8 {[%clk 0:01:05.9]} 20. a3 {[%clk 0:00:32.4]} 20... Qf7 {[%clk
0:01:04.6]} 21. b4 {[%clk 0:00:25.4]} 21... d5 {[%clk 0:00:57.6]} 22. b5 {[%clk
0:00:15.1]} 22... axb5 {[%clk 0:00:55.5]} 23. cxb5 {[%clk 0:00:15.3]} 23... Na7
{[%clk 0:00:42.9]} 24. Qa4 {[%clk 0:00:13.3]} 24... b6 {[%clk 0:00:38.9]} 25.
exd5 {[%clk 0:00:10.8]} 25... exd5 {[%clk 0:00:37.5]} 26. Bd4 {[%clk 0:00:10.8]}
26... Rhe8 {[%clk 0:00:24.1]} 27. Kb2 {[%clk 0:00:10.7]} 27... Nd7 {[%clk
0:00:21]} 28. Qc2 {[%clk 0:00:09.9]} 28... Nc5 {[%clk 0:00:20.7]} 29. Bxc5
{[%clk 0:00:09.6]} 29... Bxc5 {[%clk 0:00:21.6]} 30. Bd3 {[%clk 0:00:08.4]}
30... Qf6 {[%clk 0:00:20.9]} 31. Rhf1 {[%clk 0:00:08.1]} 31... Bd4 {[%clk
0:00:20.8]} 32. Kb3 {[%clk 0:00:05.8]} 32... Bxc3 {[%clk 0:00:19.8]} 33. Qxc3
{[%clk 0:00:06.7]} 33... Qxc3+ {[%clk 0:00:18.4]} 34. Kxc3 {[%clk 0:00:07.6]}
34... d4+ {[%clk 0:00:19.3]} 35. Kc4 {[%clk 0:00:07.7]} 35... Nc8 {[%clk
0:00:19.9]} 36. Rde1 {[%clk 0:00:08.1]} 36... Nd6+ {[%clk 0:00:19.6]} 37. Kb3
{[%clk 0:00:07.9]} 37... Rxe1 {[%clk 0:00:18.1]} 38. Rxe1 {[%clk 0:00:08.8]}
38... Rf8 {[%clk 0:00:18.5]} 39. Be4 {[%clk 0:00:08.2]} 39... Nxe4 {[%clk
0:00:17.2]} 40. fxe4 {[%clk 0:00:09.1]} 40... Rf3+ {[%clk 0:00:16.9]} 41. Kc4
{[%clk 0:00:09.5]} 41... Rxa3 {[%clk 0:00:16.8]} 42. Kxd4 {[%clk 0:00:09.9]}
42... Rf3 {[%clk 0:00:17.4]} 43. e5 {[%clk 0:00:09.9]} 43... Kc8 {[%clk
0:00:16.6]} 44. Kd5 {[%clk 0:00:09.9]} 44... Kd8 {[%clk 0:00:16.4]} 45. Kc6
{[%clk 0:00:09.9]} 45... Rc3+ {[%clk 0:00:16.1]} 46. Kd5 {[%clk 0:00:09.8]}
46... Rd3+ {[%clk 0:00:15.4]} 47. Ke4 {[%clk 0:00:10.2]} 47... Rb3 {[%clk
0:00:15.2]} 48. Rd1+ {[%clk 0:00:10.5]} 48... Ke7 {[%clk 0:00:14.9]} 49. Rd5
{[%clk 0:00:11.1]} 49... Rb4+ {[%clk 0:00:07.3]} 50. Kf5 {[%clk 0:00:11]} 50...
Rxh4 {[%clk 0:00:08.2]} 51. Kg6 {[%clk 0:00:10.4]} 51... Rg4+ {[%clk 0:00:07.2]}
52. Kf5 {[%clk 0:00:10.7]} 52... Rb4 {[%clk 0:00:07.6]} 53. Kg6 {[%clk
0:00:10.5]} 53... Ke6 {[%clk 0:00:07.9]} 54. Rd8 {[%clk 0:00:10]} 54... Kxe5
{[%clk 0:00:08.1]} 55. Kxg7 {[%clk 0:00:10]} 55... Rxb5 {[%clk 0:00:08]} 56. Rh8
{[%clk 0:00:10.9]} 56... Kd6 {[%clk 0:00:07.7]} 57. Rh4 {[%clk 0:00:11.2]} 57...
Kc5 {[%clk 0:00:07.5]} 58. Kf6 {[%clk 0:00:11.5]} 58... Kc6 {[%clk 0:00:08.4]}
59. Ke6 {[%clk 0:00:11.9]} 59... Kb7 {[%clk 0:00:08.9]} 60. Rc4 {[%clk
0:00:12.1]} 60... Ra5 {[%clk 0:00:09.8]} 61. Kd7 {[%clk 0:00:12.3]} 61... c5
{[%clk 0:00:09.8]} 62. Kd6 {[%clk 0:00:12.7]} 62... Ka6 {[%clk 0:00:09.8]} 63.
Kc6 {[%clk 0:00:12.7]} 63... Ra4 {[%clk 0:00:08.8]} 64. Rxa4# {[%clk 0:00:11.5]}
1-0

[Event "*** SCC Grand Prix: Titled Tuesday Blitz"]
[Site "Chess.com"]
[Date "2020.07.14"]
[Round "4"]
[White "regular_legs"]
[Black "rpragchess"]
[Result "0-1"]
[WhiteElo "2517"]
[BlackElo "2801"]
[TimeControl "180+1"]
[EndTime "10:40:42 PDT"]
[Termination "rpragchess won by resignation"]

1. d4 {[%clk 0:03:00]} 1... Nf6 {[%clk 0:02:59.9]} 2. c4 {[%clk 0:03:00]} 2...
Nc6 {[%clk 0:02:56.1]} 3. Nf3 {[%clk 0:02:59.4]} 3... e6 {[%clk 0:02:56.3]} 4.
Nc3 {[%clk 0:02:59.3]} 4... Bb4 {[%clk 0:02:53.6]} 5. Qc2 {[%clk 0:02:59.1]}
5... O-O {[%clk 0:02:51.8]} 6. Bd2 {[%clk 0:02:57.4]} 6... d6 {[%clk 0:02:51.9]}
7. a3 {[%clk 0:02:54.1]} 7... Bxc3 {[%clk 0:02:52.2]} 8. Bxc3 {[%clk 0:02:55]}
8... Qe7 {[%clk 0:02:52.9]} 9. e4 {[%clk 0:02:23.8]} 9... e5 {[%clk 0:02:52.7]}
10. d5 {[%clk 0:02:23.7]} 10... Nb8 {[%clk 0:02:16.3]} 11. Bd3 {[%clk 0:02:21]}
11... a5 {[%clk 0:02:11.2]} 12. b4 {[%clk 0:02:20.7]} 12... Nh5 {[%clk
0:02:01.5]} 13. g3 {[%clk 0:02:15.2]} 13... Bh3 {[%clk 0:01:59.7]} 14. Nd2
{[%clk 0:02:12.1]} 14... Na6 {[%clk 0:01:53.1]} 15. Rb1 {[%clk 0:01:54.2]} 15...
axb4 {[%clk 0:01:38.3]} 16. axb4 {[%clk 0:01:55.1]} 16... c6 {[%clk 0:01:38.6]}
17. Nf1 {[%clk 0:01:21.9]} 17... cxd5 {[%clk 0:01:11.8]} 18. cxd5 {[%clk
0:01:22.8]} 18... f5 {[%clk 0:01:06.2]} 19. exf5 {[%clk 0:00:47.5]} 19... Bg2
{[%clk 0:01:04.5]} 20. Rg1 {[%clk 0:00:47.3]} 20... Bxd5 {[%clk 0:01:04.5]} 21.
Ne3 {[%clk 0:00:47.7]} 21... Bf7 {[%clk 0:01:03.1]} 22. Be4 {[%clk 0:00:21.9]}
22... Nf6 {[%clk 0:01:02.6]} 23. Qd3 {[%clk 0:00:21.6]} 23... Rfc8 {[%clk
0:01:00.1]} 24. Bd2 {[%clk 0:00:19.2]} 24... Qd7 {[%clk 0:00:44.1]} 25. Bd5
{[%clk 0:00:17.7]} 25... Nxd5 {[%clk 0:00:34]} 26. Nxd5 {[%clk 0:00:18.6]} 26...
e4 {[%clk 0:00:34.5]} 27. Qd4 {[%clk 0:00:13.3]} 27... Re8 {[%clk 0:00:13.5]}
28. Ne3 {[%clk 0:00:12.6]} 28... Nc7 {[%clk 0:00:09.6]} 29. Kf1 {[%clk
0:00:08.7]} 29... Nb5 {[%clk 0:00:08.7]} 30. Qb2 {[%clk 0:00:08.7]} 30... Ra2
{[%clk 0:00:08.9]} 31. Qc1 {[%clk 0:00:08.5]} 31... Nd4 {[%clk 0:00:08.7]} 32.
Kg2 {[%clk 0:00:07.1]} 32... Nf3 {[%clk 0:00:06.4]} 33. Bc3 {[%clk 0:00:07.2]}
33... d5 {[%clk 0:00:05.6]} 34. Rd1 {[%clk 0:00:06.9]} 34... d4 {[%clk
0:00:06.1]} 35. Bxd4 {[%clk 0:00:06.1]} 35... Nxd4 {[%clk 0:00:06.3]} 36. Qc3
{[%clk 0:00:06.5]} 36... Rd8 {[%clk 0:00:05.6]} 37. f6 {[%clk 0:00:06]} 37...
gxf6 {[%clk 0:00:04.3]} 38. b5 {[%clk 0:00:06.4]} 38... Ra4 {[%clk 0:00:03.3]}
39. Nc2 {[%clk 0:00:05.5]} 39... Rc4 {[%clk 0:00:02.9]} 40. Qe3 {[%clk
0:00:05.2]} 40... Rxc2 {[%clk 0:00:02.8]} 41. Rb4 {[%clk 0:00:06]} 41... Qf5
{[%clk 0:00:02.9]} 42. Rbxd4 {[%clk 0:00:05.9]} 42... Rxd4 {[%clk 0:00:03.8]}
43. Rxd4 {[%clk 0:00:05.4]} 43... Kg7 {[%clk 0:00:04.5]} 44. Rd6 {[%clk
0:00:05.5]} 44... Qc5 {[%clk 0:00:03.5]} 45. Qf4 {[%clk 0:00:05.4]} 45... e3
{[%clk 0:00:03.1]} 46. Qxf6+ {[%clk 0:00:05.5]} 46... Kg8 {[%clk 0:00:02.4]} 47.
Rd8+ {[%clk 0:00:05.9]} 47... Qf8 {[%clk 0:00:03.2]} 48. Rxf8+ {[%clk
0:00:06.4]} 48... Kxf8 {[%clk 0:00:04.1]} 49. Qd6+ {[%clk 0:00:07.2]} 49... Kg8
{[%clk 0:00:04]} 50. Qe5 {[%clk 0:00:07.7]} 50... Rxf2+ {[%clk 0:00:03.4]} 51.
Kg1 {[%clk 0:00:08.1]} 51... Re2 {[%clk 0:00:03.5]} 52. b6 {[%clk 0:00:08]}
52... Re1+ {[%clk 0:00:03.4]} 53. Kg2 {[%clk 0:00:08.2]} 53... e2 {[%clk
0:00:04]} 54. Kf2 {[%clk 0:00:08.3]} 54... Rb1 {[%clk 0:00:03.4]} 55. Kxe2
{[%clk 0:00:08.6]} 55... Rxb6 {[%clk 0:00:03.8]} 56. Qg5+ {[%clk 0:00:08]} 56...
Rg6 {[%clk 0:00:04.3]} 57. Qe5 {[%clk 0:00:08.2]} 57... Re6 {[%clk 0:00:04.1]}
58. Qxe6 {[%clk 0:00:08.7]} 58... Bxe6 {[%clk 0:00:05]} 59. Ke3 {[%clk
0:00:09.6]} 59... Bd5 {[%clk 0:00:05.3]} 60. Kd4 {[%clk 0:00:10.5]} 60... Bc6
{[%clk 0:00:06.2]} 61. Kc5 {[%clk 0:00:11]} 61... Kf7 {[%clk 0:00:06.8]} 62. Kd6
{[%clk 0:00:11.9]} 62... Kg6 {[%clk 0:00:07.3]} 63. g4 {[%clk 0:00:12.5]} 63...
Kg5 {[%clk 0:00:07.5]} 0-1

[Event "*** SCC Grand Prix: Titled Tuesday Blitz"]
[Site "Chess.com"]
[Date "2020.07.14"]
[Round "4"]
[White "Vladislav_Chizhikov"]
[Black "allvim"]
[Result "0-1"]
[WhiteElo "2442"]
[BlackElo "2259"]
[TimeControl "180+1"]
[EndTime "10:40:43 PDT"]
[Termination "allvim won by checkmate"]

1. e4 {[%clk 0:03:00.9]} 1... c5 {[%clk 0:02:59.5]} 2. Nf3 {[%clk 0:03:00.3]}
2... d6 {[%clk 0:02:59.3]} 3. c3 {[%clk 0:02:59.5]} 3... Nf6 {[%clk 0:02:55.3]}
4. Bd3 {[%clk 0:02:59.7]} 4... Nc6 {[%clk 0:02:54.5]} 5. h3 {[%clk 0:02:56.9]}
5... g6 {[%clk 0:02:54.4]} 6. Bc2 {[%clk 0:02:56.4]} 6... Bg7 {[%clk 0:02:54.9]}
7. O-O {[%clk 0:02:56.8]} 7... O-O {[%clk 0:02:54.8]} 8. d4 {[%clk 0:02:57.3]}
8... cxd4 {[%clk 0:02:43.1]} 9. cxd4 {[%clk 0:02:58.2]} 9... Nb4 {[%clk
0:02:43.4]} 10. Bb3 {[%clk 0:02:52.1]} 10... d5 {[%clk 0:02:13.7]} 11. e5 {[%clk
0:02:51.1]} 11... Ne4 {[%clk 0:02:14]} 12. Nc3 {[%clk 0:02:49.7]} 12... Be6
{[%clk 0:01:40.4]} 13. Ng5 {[%clk 0:02:29.7]} 13... Nxg5 {[%clk 0:01:36.3]} 14.
Bxg5 {[%clk 0:02:30.6]} 14... Rc8 {[%clk 0:01:24.2]} 15. Qd2 {[%clk 0:02:30.1]}
15... a6 {[%clk 0:01:01.9]} 16. Bh6 {[%clk 0:02:22.2]} 16... Nc6 {[%clk
0:00:59.5]} 17. Rad1 {[%clk 0:02:20.6]} 17... Qd7 {[%clk 0:00:52.8]} 18. Rfe1
{[%clk 0:02:07.1]} 18... Rfd8 {[%clk 0:00:52]} 19. Bxg7 {[%clk 0:02:06.4]} 19...
Kxg7 {[%clk 0:00:52]} 20. Qg5 {[%clk 0:02:01.9]} 20... Na5 {[%clk 0:00:52]} 21.
Re3 {[%clk 0:01:48.4]} 21... Nxb3 {[%clk 0:00:51.6]} 22. axb3 {[%clk 0:01:48.9]}
22... h6 {[%clk 0:00:50.8]} 23. Qf4 {[%clk 0:01:47.4]} 23... b5 {[%clk
0:00:46.8]} 24. Rd2 {[%clk 0:01:36.4]} 24... Rc7 {[%clk 0:00:43.3]} 25. Rg3
{[%clk 0:01:32.5]} 25... Rdc8 {[%clk 0:00:42.7]} 26. Kh2 {[%clk 0:01:32.8]}
26... Qd8 {[%clk 0:00:20.8]} 27. h4 {[%clk 0:01:31.5]} 27... h5 {[%clk
0:00:18.6]} 28. Qg5 {[%clk 0:01:30]} 28... Kh7 {[%clk 0:00:19.2]} 29. Ne2 {[%clk
0:01:24.1]} 29... Rc2 {[%clk 0:00:19.1]} 30. Rxc2 {[%clk 0:01:23.2]} 30... Rxc2
{[%clk 0:00:20]} 31. Nf4 {[%clk 0:01:23.8]} 31... Bf5 {[%clk 0:00:20.6]} 32.
Nxh5 {[%clk 0:01:21.9]} 32... Rxf2 {[%clk 0:00:19.4]} 33. Rc3 {[%clk 0:00:58.4]}
33... gxh5 {[%clk 0:00:16.9]} 34. Qxh5+ {[%clk 0:00:52.2]} 34... Kg7 {[%clk
0:00:17]} 35. Qg5+ {[%clk 0:00:48.1]} 35... Bg6 {[%clk 0:00:17.1]} 36. h5 {[%clk
0:00:48.3]} 36... Qh8 {[%clk 0:00:17]} 37. Rh3 {[%clk 0:00:46.6]} 37... Qh6
{[%clk 0:00:11.8]} 38. Qxh6+ {[%clk 0:00:38.4]} 38... Kxh6 {[%clk 0:00:11.8]}
39. hxg6+ {[%clk 0:00:38.5]} 39... Kxg6 {[%clk 0:00:12.7]} 40. Rc3 {[%clk
0:00:32.7]} 40... Rxb2 {[%clk 0:00:12.2]} 41. Rc6+ {[%clk 0:00:32.5]} 41... e6
{[%clk 0:00:11]} 42. Rxa6 {[%clk 0:00:32.7]} 42... Rxb3 {[%clk 0:00:11.4]} 43.
g3 {[%clk 0:00:18.5]} 43... Rb4 {[%clk 0:00:11.3]} 44. Kh3 {[%clk 0:00:18]}
44... Rxd4 {[%clk 0:00:11.4]} 45. Rb6 {[%clk 0:00:18.9]} 45... Rb4 {[%clk
0:00:11.6]} 46. Rb7 {[%clk 0:00:15.3]} 46... d4 {[%clk 0:00:09.8]} 47. Kg4
{[%clk 0:00:14.7]} 47... d3+ {[%clk 0:00:09.6]} 48. Kf3 {[%clk 0:00:15.6]} 48...
Rb3 {[%clk 0:00:08.8]} 49. Ke3 {[%clk 0:00:15.5]} 49... b4 {[%clk 0:00:08.7]}
50. Kd2 {[%clk 0:00:13.5]} 50... Kf5 {[%clk 0:00:08.9]} 51. Rxf7+ {[%clk
0:00:11.2]} 51... Kxe5 {[%clk 0:00:09.6]} 52. g4 {[%clk 0:00:11.1]} 52... Ke4
{[%clk 0:00:08.9]} 53. g5 {[%clk 0:00:07.6]} 53... Rb2+ {[%clk 0:00:09.3]} 54.
Kd1 {[%clk 0:00:08.5]} 54... Rg2 {[%clk 0:00:08.9]} 55. Rb7 {[%clk 0:00:06.4]}
55... Rxg5 {[%clk 0:00:06.8]} 56. Rb6 {[%clk 0:00:06.6]} 56... Ke3 {[%clk
0:00:06.6]} 57. Rxe6+ {[%clk 0:00:06.2]} 57... Kd4 {[%clk 0:00:07]} 58. Rb6
{[%clk 0:00:04.7]} 58... Kc4 {[%clk 0:00:05.8]} 59. Kd2 {[%clk 0:00:03]} 59...
Rg2+ {[%clk 0:00:06]} 60. Kd1 {[%clk 0:00:03]} 60... Kc3 {[%clk 0:00:05.5]} 61.
Rb8 {[%clk 0:00:02.3]} 61... Rg1# {[%clk 0:00:04.8]} 0-1

[Event "*** SCC Grand Prix: Titled Tuesday Blitz"]
[Site "Chess.com"]
[Date "2020.07.14"]
[Round "4"]
[White "MuradNuri"]
[Black "vaishali2001"]
[Result "1-0"]
[WhiteElo "2460"]
[BlackElo "2604"]
[TimeControl "180+1"]
[EndTime "10:40:44 PDT"]
[Termination "MuradNuri won by resignation"]

1. e4 {[%clk 0:03:00.9]} 1... c5 {[%clk 0:02:58.8]} 2. Nf3 {[%clk 0:03:01.2]}
2... Nc6 {[%clk 0:02:55.3]} 3. d4 {[%clk 0:03:00.5]} 3... cxd4 {[%clk
0:02:54.5]} 4. Nxd4 {[%clk 0:03:01.4]} 4... Nf6 {[%clk 0:02:54.9]} 5. Nc3 {[%clk
0:03:01.1]} 5... d6 {[%clk 0:02:55.4]} 6. Bg5 {[%clk 0:02:58.8]} 6... e6 {[%clk
0:02:53.9]} 7. Qd2 {[%clk 0:02:59.2]} 7... a6 {[%clk 0:02:52.2]} 8. O-O-O {[%clk
0:02:57]} 8... Be7 {[%clk 0:02:50.4]} 9. f4 {[%clk 0:02:53.1]} 9... Bd7 {[%clk
0:02:47.1]} 10. Be2 {[%clk 0:02:43.7]} 10... h6 {[%clk 0:02:11.9]} 11. Bxf6
{[%clk 0:02:40]} 11... Bxf6 {[%clk 0:02:09.4]} 12. Nf3 {[%clk 0:02:35.6]} 12...
Be7 {[%clk 0:02:07.5]} 13. g4 {[%clk 0:02:32.2]} 13... b5 {[%clk 0:02:05.1]} 14.
a3 {[%clk 0:02:25.8]} 14... Qa5 {[%clk 0:01:56.8]} 15. Nd4 {[%clk 0:02:01.5]}
15... b4 {[%clk 0:01:46.8]} 16. axb4 {[%clk 0:01:46.6]} 16... Nxb4 {[%clk
0:01:07.8]} 17. Nb3 {[%clk 0:01:46.6]} 17... Na2+ {[%clk 0:01:02]} 18. Nxa2
{[%clk 0:01:46.3]} 18... Qxa2 {[%clk 0:01:02.9]} 19. Qa5 {[%clk 0:01:38.8]}
19... Qxa5 {[%clk 0:00:52.6]} 20. Nxa5 {[%clk 0:01:39.7]} 20... O-O {[%clk
0:00:48.5]} 21. Bf3 {[%clk 0:01:27.2]} 21... Rab8 {[%clk 0:00:44.1]} 22. Nc4
{[%clk 0:01:24.2]} 22... d5 {[%clk 0:00:36.6]} 23. exd5 {[%clk 0:01:24.7]} 23...
exd5 {[%clk 0:00:36.8]} 24. Ne5 {[%clk 0:01:20]} 24... Be6 {[%clk 0:00:23.3]}
25. Bxd5 {[%clk 0:01:19.2]} 25... Bc5 {[%clk 0:00:11.5]} 26. Bxe6 {[%clk
0:01:12.8]} 26... Be3+ {[%clk 0:00:11.6]} 27. Kb1 {[%clk 0:01:12.8]} 27... fxe6
{[%clk 0:00:12.1]} 28. Nd7 {[%clk 0:01:12.7]} 28... Bxf4 {[%clk 0:00:12.4]} 29.
Nxf8 {[%clk 0:01:07.9]} 29... Rxf8 {[%clk 0:00:11.8]} 30. Rhe1 {[%clk
0:01:02.1]} 30... e5 {[%clk 0:00:11.6]} 31. Re2 {[%clk 0:00:59.1]} 31... Kf7
{[%clk 0:00:08.8]} 32. Rd6 {[%clk 0:00:53.7]} 32... Ra8 {[%clk 0:00:07.3]} 33.
h4 {[%clk 0:00:51.3]} 33... a5 {[%clk 0:00:07.3]} 34. h5 {[%clk 0:00:50.6]}
34... a4 {[%clk 0:00:07.4]} 35. Ka2 {[%clk 0:00:50.2]} 35... Rc8 {[%clk
0:00:06.6]} 36. c3 {[%clk 0:00:47.8]} 36... Rc4 {[%clk 0:00:06.6]} 37. Rd7+
{[%clk 0:00:43.3]} 37... Kf6 {[%clk 0:00:06.6]} 38. Rd6+ {[%clk 0:00:41.9]}
38... Kg5 {[%clk 0:00:07.1]} 39. Rg6+ {[%clk 0:00:41.8]} 39... Kh4 {[%clk
0:00:07.6]} 40. Rxg7 {[%clk 0:00:42.7]} 40... e4 {[%clk 0:00:06.3]} 41. Rd7
{[%clk 0:00:27.8]} 41... e3 {[%clk 0:00:05.8]} 42. Rd4 {[%clk 0:00:27.4]} 42...
Rxd4 {[%clk 0:00:05.8]} 43. cxd4 {[%clk 0:00:28.3]} 43... Kg3 {[%clk 0:00:06.3]}
44. d5 {[%clk 0:00:16.9]} 44... Kf3 {[%clk 0:00:06.1]} 45. Re1 {[%clk
0:00:16.3]} 45... e2 {[%clk 0:00:05]} 46. Ka3 {[%clk 0:00:08.6]} 46... Kf2
{[%clk 0:00:04.5]} 47. Rh1 {[%clk 0:00:07.8]} 47... e1=Q {[%clk 0:00:03]} 48.
Rxe1 {[%clk 0:00:07.9]} 48... Kxe1 {[%clk 0:00:03.9]} 49. Kxa4 {[%clk
0:00:07.3]} 49... Kf2 {[%clk 0:00:04.2]} 50. Kb5 {[%clk 0:00:05.2]} 50... Kf3
{[%clk 0:00:04.6]} 51. Kc6 {[%clk 0:00:06.1]} 51... Kxg4 {[%clk 0:00:05]} 52. d6
{[%clk 0:00:06.6]} 52... Kxh5 {[%clk 0:00:05.2]} 53. b4 {[%clk 0:00:06.2]} 53...
Kg4 {[%clk 0:00:04.7]} 54. d7 {[%clk 0:00:06]} 54... Bg5 {[%clk 0:00:04.3]} 55.
b5 {[%clk 0:00:06.9]} 55... h5 {[%clk 0:00:03.7]} 56. b6 {[%clk 0:00:07.8]}
56... h4 {[%clk 0:00:04]} 57. b7 {[%clk 0:00:08.2]} 57... h3 {[%clk 0:00:04.5]}
58. b8=Q {[%clk 0:00:08.6]} 58... Kf3 {[%clk 0:00:04.4]} 59. Qh2 {[%clk
0:00:08.3]} 59... Kg4 {[%clk 0:00:04.1]} 60. Qg1+ {[%clk 0:00:08.4]} 60... Kh4
{[%clk 0:00:03.7]} 61. Kc7 {[%clk 0:00:07.4]} 61... Bf4+ {[%clk 0:00:04]} 62.
Kc8 {[%clk 0:00:07.3]} 62... Bg5 {[%clk 0:00:04.5]} 63. d8=Q {[%clk 0:00:07.3]}
63... Bxd8 {[%clk 0:00:04.4]} 64. Kxd8 {[%clk 0:00:08.2]} 1-0

[Event "*** SCC Grand Prix: Titled Tuesday Blitz"]
[Site "Chess.com"]
[Date "2020.07.14"]
[Round "4"]
[White "manitodeplomo"]
[Black "VMikhalevski"]
[Result "0-1"]
[WhiteElo "2512"]
[BlackElo "2794"]
[TimeControl "180+1"]
[EndTime "10:40:48 PDT"]
[Termination "VMikhalevski won by resignation"]

1. d4 {[%clk 0:02:58.1]} 1... Nf6 {[%clk 0:02:59.1]} 2. c4 {[%clk 0:02:58]} 2...
g6 {[%clk 0:02:58.5]} 3. Nc3 {[%clk 0:02:57.4]} 3... d5 {[%clk 0:02:59]} 4. Nf3
{[%clk 0:02:55.4]} 4... Bg7 {[%clk 0:02:57.1]} 5. cxd5 {[%clk 0:02:55.8]} 5...
Nxd5 {[%clk 0:02:56.8]} 6. g3 {[%clk 0:02:55.8]} 6... c5 {[%clk 0:02:51.4]} 7.
Bg2 {[%clk 0:02:55]} 7... Nxc3 {[%clk 0:02:47.2]} 8. bxc3 {[%clk 0:02:54.3]}
8... Nc6 {[%clk 0:02:47.7]} 9. e3 {[%clk 0:02:43.7]} 9... O-O {[%clk 0:02:46.6]}
10. O-O {[%clk 0:02:43]} 10... Bg4 {[%clk 0:02:41.6]} 11. h3 {[%clk 0:02:34.1]}
11... Bf5 {[%clk 0:02:40.2]} 12. Qe2 {[%clk 0:02:32.5]} 12... Be4 {[%clk
0:02:37.8]} 13. Ba3 {[%clk 0:02:28.7]} 13... Qa5 {[%clk 0:02:30.5]} 14. Bxc5
{[%clk 0:02:27.3]} 14... b6 {[%clk 0:02:30.6]} 15. Bb4 {[%clk 0:02:24.4]} 15...
Nxb4 {[%clk 0:02:30.2]} 16. cxb4 {[%clk 0:02:25.3]} 16... Qxb4 {[%clk
0:02:30.7]} 17. a4 {[%clk 0:02:24]} 17... Rfc8 {[%clk 0:02:24.1]} 18. Ng5 {[%clk
0:02:19.8]} 18... Bxg2 {[%clk 0:02:22.4]} 19. Kxg2 {[%clk 0:02:20.7]} 19... Qc4
{[%clk 0:02:12.8]} 20. Qf3 {[%clk 0:02:16.6]} 20... h6 {[%clk 0:02:06]} 21. Ne4
{[%clk 0:02:14.9]} 21... Qe6 {[%clk 0:01:57.6]} 22. Rfb1 {[%clk 0:02:06.4]}
22... Rab8 {[%clk 0:01:52.8]} 23. g4 {[%clk 0:01:48.5]} 23... Rc2 {[%clk
0:01:47.5]} 24. h4 {[%clk 0:01:29.1]} 24... f5 {[%clk 0:01:38.9]} 25. gxf5
{[%clk 0:01:26.4]} 25... gxf5 {[%clk 0:01:38.2]} 26. Ng3 {[%clk 0:01:23.4]}
26... f4 {[%clk 0:01:37.3]} 27. exf4 {[%clk 0:00:51.1]} 27... Bxd4 {[%clk
0:01:35.5]} 28. Re1 {[%clk 0:00:47]} 28... Qf7 {[%clk 0:01:23.9]} 29. Ne4 {[%clk
0:00:43.6]} 29... Kh8 {[%clk 0:01:17.2]} 30. Rad1 {[%clk 0:00:41.9]} 30... Rg8+
{[%clk 0:01:16.2]} 31. Kh3 {[%clk 0:00:39.8]} 31... Qf5+ {[%clk 0:01:10]} 32.
Kh2 {[%clk 0:00:39.5]} 32... Bf6 {[%clk 0:01:00.7]} 33. Rc1 {[%clk 0:00:35.6]}
33... Ra2 {[%clk 0:00:57.9]} 34. Rg1 {[%clk 0:00:33]} 34... Rxg1 {[%clk
0:00:51.5]} 35. Rxg1 {[%clk 0:00:33.9]} 35... Bxh4 {[%clk 0:00:48.5]} 36. Qg2
{[%clk 0:00:29.9]} 36... Qxf4+ {[%clk 0:00:47.1]} 37. Kh1 {[%clk 0:00:30]} 37...
Bg5 {[%clk 0:00:34.6]} 38. Nxg5 {[%clk 0:00:23.5]} 38... hxg5 {[%clk 0:00:34.3]}
39. Qxg5 {[%clk 0:00:12.3]} 39... Qxg5 {[%clk 0:00:32.7]} 40. Rxg5 {[%clk
0:00:13.2]} 40... Rxa4 {[%clk 0:00:31.8]} 41. Re5 {[%clk 0:00:12.2]} 41... Kg7
{[%clk 0:00:31.5]} 42. Rxe7+ {[%clk 0:00:12]} 42... Kf6 {[%clk 0:00:31.8]} 43.
Rb7 {[%clk 0:00:12.4]} 43... Ra5 {[%clk 0:00:28.1]} 44. Kg2 {[%clk 0:00:13.3]}
44... b5 {[%clk 0:00:28.4]} 45. Kg3 {[%clk 0:00:11.9]} 45... a6 {[%clk
0:00:28.6]} 46. Kg4 {[%clk 0:00:11.1]} 46... Ra4+ {[%clk 0:00:24.4]} 47. f4
{[%clk 0:00:11.4]} 47... Ke6 {[%clk 0:00:20]} 48. Kg5 {[%clk 0:00:10.9]} 48...
Ra1 {[%clk 0:00:19.1]} 49. f5+ {[%clk 0:00:10.3]} 49... Ke5 {[%clk 0:00:19.5]}
50. Re7+ {[%clk 0:00:09.8]} 50... Kd6 {[%clk 0:00:18.9]} 51. f6 {[%clk
0:00:10.7]} 51... b4 {[%clk 0:00:17.1]} 52. Rb7 {[%clk 0:00:06.7]} 52... a5
{[%clk 0:00:14.9]} 53. f7 {[%clk 0:00:05.6]} 53... Rg1+ {[%clk 0:00:14.7]} 54.
Kf6 {[%clk 0:00:04.9]} 54... Rf1+ {[%clk 0:00:14.9]} 55. Kg7 {[%clk 0:00:05.4]}
55... Kc5 {[%clk 0:00:15.2]} 56. f8=Q+ {[%clk 0:00:04.3]} 56... Rxf8 {[%clk
0:00:14.2]} 57. Kxf8 {[%clk 0:00:05.2]} 57... a4 {[%clk 0:00:14.4]} 58. Ke7
{[%clk 0:00:04.9]} 58... a3 {[%clk 0:00:14.7]} 59. Ke6 {[%clk 0:00:04.6]} 59...
a2 {[%clk 0:00:13.9]} 60. Ra7 {[%clk 0:00:03.3]} 60... b3 {[%clk 0:00:14]} 61.
Ke5 {[%clk 0:00:04.2]} 61... Kc4 {[%clk 0:00:13.5]} 62. Rc7+ {[%clk 0:00:03.8]}
62... Kd3 {[%clk 0:00:13.3]} 63. Rb7 {[%clk 0:00:02.9]} 63... Kc2 {[%clk
0:00:13.4]} 64. Rc7+ {[%clk 0:00:03.2]} 64... Kb1 {[%clk 0:00:12.8]} 65. Kd4
{[%clk 0:00:02.6]} 65... a1=Q+ {[%clk 0:00:12.4]} 66. Kd3 {[%clk 0:00:03.5]}
66... b2 {[%clk 0:00:12]} 67. Kd2 {[%clk 0:00:03.2]} 67... Qa5+ {[%clk
0:00:11.4]} 68. Rc3 {[%clk 0:00:03.6]} 68... Ka2 {[%clk 0:00:11.4]} 69. Kc2
{[%clk 0:00:03.7]} 69... b1=Q+ {[%clk 0:00:10.7]} 0-1